{"text_format":"1","workbook":"xlsx","n_sheets":6,"sheets":["Oswiadczenie","Slownik","OswSlownik","Dane","ArkSłownie","Obrazki"],"not_rendered":{"charts":0,"images":4,"macros":1,"external_links":0,"defined_names":3,"comments":0,"pivot_tables":0},"unopened":[],"bounds":{"document_bytes":16777216,"sheet_cells":100000,"rows_first":2000,"rows_last":500,"rows_between":2000,"halvings":0,"cell_chars":16384,"cell_head_chars":4096},"cells_cut":0,"cells_raw":0,"read":"whole","date_system":"1900"}

{"sheet":"Oswiadczenie","index":0,"n_rows":65,"n_cols":10,"rows_kept":65,"cut":false,"hidden":false,"merged":[[46,2,46,7],[37,2,37,7],[58,2,58,9],[47,2,47,7],[48,2,48,7],[49,2,49,9],[50,2,50,9],[53,2,53,9],[54,2,54,9],[55,2,55,9],[51,2,51,9],[52,2,52,8],[56,2,56,9],[57,2,57,9],[38,2,38,9],[39,2,39,4],[67,7,67,9],[59,2,59,9],[60,2,60,5],[60,6,60,9],[61,2,61,5],[61,6,61,9],[62,2,62,4],[43,2,43,9],[44,2,44,7],[45,2,45,7],[36,2,36,4],[36,5,36,6],[39,5,39,6],[40,2,40,4],[40,5,40,6],[41,2,41,7],[42,2,42,9],[30,2,30,4],[30,5,30,6],[31,2,31,4],[31,5,31,6],[32,2,32,7],[33,2,33,9],[34,2,35,4],[34,5,35,6],[34,7,35,7],[34,8,35,8],[34,9,35,9],[29,2,29,9],[19,2,19,9],[20,8,20,9],[24,2,25,4],[24,5,25,5],[24,6,24,7],[25,6,25,7],[26,2,27,4],[26,5,27,5],[26,6,26,7],[27,6,27,7],[28,2,28,9],[20,2,20,6],[23,2,23,9],[21,2,21,6],[21,8,21,9],[16,2,16,5],[16,6,16,9],[17,2,17,5],[17,6,17,9],[18,2,18,5],[18,6,18,7],[18,8,18,9],[12,2,12,9],[13,2,13,5],[13,6,13,9],[14,2,14,5],[14,6,14,9],[9,2,9,5],[9,6,9,9],[10,2,10,5],[10,6,10,9],[11,2,11,5],[11,6,11,8],[22,2,22,6],[22,8,22,9],[1,2,1,9],[2,2,2,9],[3,2,3,9],[4,2,4,9],[5,2,5,5],[5,6,5,9],[6,2,6,5],[6,6,6,9],[7,2,7,5],[7,6,7,9],[8,2,8,5],[8,6,8,9],[15,2,15,5],[15,6,15,9]]}
["ver. 2.2"]
[]
[]
[null,null,"Oświadczenie Majątkowe Wnioskodawcy i Współmałżonka"]
[null,null,"Wnioskodawca"]
[null,null,"Nazwisko:",null,null,null," Imię:"]
[]
[null,null,"Adres zamieszkania wraz z kodem pocztowym",null,null,null,"Seria i nr DO/ Wydany przez"]
[]
[null,null,"Pesel:",null,null,null,"NIP:"]
[]
[null,null,"Stan cywilny (wybierz z listy rozwijanej:)",null,null,null,"kliknij aby wybrać z listy rozwijanej:"]
[null,null,"Współmałżonek Wnioskodawcy"]
[null,null,"Nazwisko:",null,null,null," Imię:"]
[]
[null,null,"Adres zamieszkania wraz z kodem pocztowym",null,null,null,"Seria i nr DO/ Wydany przez"]
[]
[null,null,"PESEL:"]
[]
[null,null,"Zadłużenie z tytułu zaciągniętych i planowanych kredytów i pożyczek "]
[null,null,"Nazwa banku/kredytodawcy",null,null,null,null,"Wielkość raty","Aktualny stan zadłużenia"]
[]
[]
[null,null,"Nazwa banku/kredytodawcaOgółem"]
[null,null,"Poręczenia kredytów/pożyczek (Tak/Nie)",null,null,null,"Kwota:",null,null,"Termin spłaty:"]
[]
[null,null,"Inne zobowiązania wobec osób prawnych i fizycznych (Tak/Nie)",null,null,null,"Kwota:",null,null,"Termin spłaty:"]
[]
[null,null,"W dniu składania niniejszej informacji mój stan majątkowy jest następujący:"]
[null,null,"Nieruchomości - grunty"]
[null,null,"Grunty - nr księgi wieczystej",null,null,"Lokalizacja",null,"Powierzchnia (ha)","Hipoteka\n (Tak/Nie)","Aktualna wartość"]
[null,null,null,null,null,null,null,null,"Tak"]
[null,null,"Grunty OGÓŁEM:",null,null,null,null,null,null,0]
[null,null,"Nieruchomości - budynki/lokale"]
[null,null,"Budynki / lokale nr księgi wieczystej:",null,null,"Lokalizacja",null,"Rodzaj nieruchomości","Hipoteka\n (Tak/Nie)","Aktualna wartość"]
[]
[null,null,null,null,null,null,null,null,"Tak"]
[null,null,"Budynki OGÓŁEM:",null,null,null,null,null,null,0]
[null,null,"Pojazdy"]
[null,null,"Pojazdy (rodzaj i marka):",null,null,"Nr rejestracyjny",null,"Rok produkcji","Zastaw/\nPrzewłaszczenie (Tak/Nie)","Aktualna wartość"]
[null,null,null,null,null,null,null,null,"Tak"]
[null,null,"Środki transportu OGÓŁEM:",null,null,null,null,null,null,0]
[]
[null,null,"Gotówka (bank/dom)"]
[null,null,"Nazwa banku",null,null,null,null,null,"Waluta","Aktualna wartość"]
[]
[]
[]
[null,null,"OGÓŁEM:",null,null,null,null,null,null,{"$f":"SUM(J46:J48)","v":0}]
[]
[]
[null,null,"Oświadczenie Wnioskodawcy:"]
[null,null,"Posiadam wymagalne zobowiązania w stosunku do Urzędu Skarbowego, ZUS, UMiG i innych (Tak/Nie)",null,null,null,null,null,null,"Tak"]
[null,null,"Pouczony o konsekwencjach karnych składania fałszywych oświadczeń (w celu wprowadzenia w błąd i chęci wyłudzenia mienia) oświadczam, że informacje pisemne, których udzieliłem/łam rzetelnie, prawdziwie zgodnie ze stanem faktycznym i prawnym są kompletne."]
[null,null,"Pouczenie"]
[null,null,"Wybrane artykuły Ustawy Kodeks Karny z 6 czerwca 1997r. (Dz.U. 1997 Nr 88.poz.553 z późniejszymi zmianami):"]
[null,null,"Art.. 286. §1. Kto w celu osiągnięcia korzyści majątkowej, doprowadza inną osobę do niekorzystnego rozporządzenia własnym lub cudzym mieniem za pomocą wprowadzenia jej w błąd albo wyzyskania błędu lub niezdolności do należytego pojmowania przedsiębranego działania, podlega karze pozbawienia wolności od 6 miesięcy do lat 8."]
[null,null,"Art.. 297. §1. Kto, w celu zyskania dla siebie lub kogo innego, od banku lub jednostki organizacyjnej prowadzącej podobną działalność gospodarczą na podstawie ustawy albo od organu lub instytucji dysponujących środkami publicznymi - kredytu, pożyczki pieniężnej, poręczenia, gwarancji, akredytywy dotacji, subwencji, potwierdzenia przez bank zobowiązania wynikającego z poręczenia lub z gwarancji lub podobnego świadczenia pieniężnego na określony cel gospodarczy, elektronicznego instrumentu płatniczego lub zamówienia publicznego, przedkłada podrobiony, przerobiony, poświadczający nieprawdę albo nierzetelny dokument albo nierzetelne, pisemne oświadczenie dotyczące okoliczności o istotnym znaczeniu dla uzyskania wymienionego wparcia finansowego, instrumentu płatniczego lub zamówienia podlega karze pozbawienia wolności od 3 miesięcy do lat 5. §2 Tej samej karze podlega, kto wbrew ciążącemu obowiązkowi, nie powiadamia właściwego podmiotu o powstaniu sytuacji mogącej mieć wpływ na wstrzymanie albo ograniczenie wysokości udzielonego wsparcia finansowego, określonego w §1. lub zamówienia publicznego albo na możliwość dalszego korzystania z elektronicznego instrumentu płatniczego. "]
[]
[]
[null,null,"Miejscowość i data",null,null,null,"czytelny podpis składającego oświadczenie"]
[null,null,"Miejscowość i data",null,null,null,"czytelny podpis współmałżonka (jeśli dotyczy)"]
[]
[]
[null,null,"EOF"]

{"sheet":"Slownik","index":1,"n_rows":10,"n_cols":5,"rows_kept":10,"cut":false,"hidden":true,"merged":[]}
["Miasto","Biuro","Pracownik",null,"Stan cywilny"]
["Warszawa","Płock","Maria Lemanowicz-Owsik",null,"zamężna / żonaty"]
["Siedlce","Płock","Justyna Szymańska",null,"panna / kawaler"]
["Płock","Połczyn Zdrój","Małgorzata Kubiak",null,"wdowa / wdowiec"]
["Połczyn Zdrój","Połczyn Zdrój","Irena Domitrz",null,"rozwiedziona / rozwiedziony"]
["Radom","Radom","Witold Makulski",null,"w separacji"]
[null,"Radom","Aneta Kibler"]
[null,"Siedlce","Katarzyna Bułakowska"]
[null,"Siedlce","Anna Wielogórska"]
[null,"Warszawa","Monika Mondzelewska"]

{"sheet":"OswSlownik","index":2,"n_rows":7,"n_cols":3,"rows_kept":7,"cut":false,"hidden":true,"merged":[]}
[null,null,"Stan cywilny"]
["Budynek mieszkalny",null,"kliknij aby wybrać z listy rozwijanej:"]
["Lokal mieszkalny",null,"zamężna / żonaty"]
["Budynek usługowy/handlowy",null,"panna / kawaler"]
["Lokal usługowy/handlowy",null,"wdowa / wdowiec"]
["Inne",null,"rozwiedziona / rozwiedziony"]
[null,null,"w separacji"]

{"sheet":"Dane","index":3,"n_rows":442,"n_cols":15,"rows_kept":442,"cut":false,"hidden":true,"merged":[[0,3,4,7]]}
["program",5,null,"uwaga, w tej zakładce nie wolno wstawiać nowych wierszy - to spowoduje zniszczenie wszystkich formuł - odwołań do arkusza Wniosek !! - nowe tylko na końcu !!",null,null,null,null,null,null,null,null,null,"wersja wniosku","1.49"]
["priorytet","b"]
["wnioskowanaKwota",{"$f":"#REF!","v":{"$error":"#REF!"}}]
["okresKredytowaniaWms",{"$f":"#REF!","v":{"$error":"#REF!"}}]
["wnioskowanyOkresKarencji",{"$f":"#REF!","v":{"$error":"#REF!"}}]
["opisCeluPozyczki",{"$f":"#REF!","v":{"$error":"#REF!"}}]
["miejsceInwestycjiWgPowiatu",{"$f":"#REF!","v":{"$error":"#REF!"}}]
["odddzialID",1]
["imieInazwiskoOficera"]
["nazwisko",{"$f":"#REF!","v":{"$error":"#REF!"}}]
["imie",{"$f":"#REF!","v":{"$error":"#REF!"}}]
["seriaINrDo",{"$f":"#REF!","v":{"$error":"#REF!"}}]
["doWydanyPrzez",{"$f":"#REF!","v":{"$error":"#REF!"}}]
["nrPesel",{"$f":"#REF!","v":{"$error":"#REF!"}}]
["nrNip",{"$f":"#REF!","v":{"$error":"#REF!"}}]
["stanCywilny",{"$f":"#REF!","v":{"$error":"#REF!"}}]
["imieINaziwskoWspolmalzonka",{"$f":"#REF!","v":{"$error":"#REF!"}}]
["adresZamieszkaniaUlica",{"$f":"#REF!","v":{"$error":"#REF!"}}]
["kodPocztowy",{"$f":"#REF!","v":{"$error":"#REF!"}}]
["miejscowosc",{"$f":"#REF!","v":{"$error":"#REF!"}}]
["miejscowoscRodzaj",3]
["adresKorespondencyjnyNrMieszkania",{"$f":"#REF!","v":{"$error":"#REF!"}}]
["kodPocztowyKorespondencyjny",{"$f":"#REF!","v":{"$error":"#REF!"}}]
["miejscowoscKorespondencyjny",{"$f":"#REF!","v":{"$error":"#REF!"}}]
["telefon1",{"$f":"#REF!","v":{"$error":"#REF!"}}]
["telefon2",{"$f":"#REF!","v":{"$error":"#REF!"}}]
["email",{"$f":"#REF!","v":{"$error":"#REF!"}}]
["www",{"$f":"#REF!","v":{"$error":"#REF!"}}]
["wyksztalcenie",{"$f":"#REF!","v":{"$error":"#REF!"}}]
["kwalfikacjeIUprawnienia",{"$f":"#REF!","v":{"$error":"#REF!"}}]
["adresZamieszkaniaNrMiekszania",{"$f":"#REF!","v":{"$error":"#REF!"}}]
["adresZamieszkaniaNrDomu",{"$f":"#REF!","v":{"$error":"#REF!"}}]
["nazwaZakladuPracy",{"$f":"#REF!","v":{"$error":"#REF!"}}]
["okresOdDo",{"$f":"#REF!","v":{"$error":"#REF!"}}]
["stanowisko",{"$f":"#REF!","v":{"$error":"#REF!"}}]
["nazwaZakladuPracyWspolmalzonek",{"$f":"#REF!","v":{"$error":"#REF!"}}]
["okresOdDoWspolmalzonek",{"$f":"#REF!","v":{"$error":"#REF!"}}]
["stanowiskoWspolmalzonek",{"$f":"#REF!","v":{"$error":"#REF!"}}]
["oficerPozyczkowy","",61]
["osoby pozostajace we wspolnym"]
["nazwiskoIImie1",{"$f":"#REF!","v":{"$error":"#REF!"}}]
["wiek1",{"$f":"#REF!","v":{"$error":"#REF!"}}]
["stopienPokrewienstwa1",{"$f":"#REF!","v":{"$error":"#REF!"}}]
["miesiecznyDochodNetto1",{"$f":"#REF!","v":{"$error":"#REF!"}}]
["nazwiskoIImie2",{"$f":"#REF!","v":{"$error":"#REF!"}}]
["wiek2",{"$f":"#REF!","v":{"$error":"#REF!"}}]
["stopienPokrewienstwa2",{"$f":"#REF!","v":{"$error":"#REF!"}}]
["miesiecznyDochodNetto2",{"$f":"#REF!","v":{"$error":"#REF!"}}]
["nazwiskoIImie3",{"$f":"#REF!","v":{"$error":"#REF!"}}]
["wiek3",{"$f":"#REF!","v":{"$error":"#REF!"}}]
["stopienPokrewienstwa3",{"$f":"#REF!","v":{"$error":"#REF!"}}]
["miesiecznyDochodNetto3",{"$f":"#REF!","v":{"$error":"#REF!"}}]
["nazwiskoIImie4",{"$f":"#REF!","v":{"$error":"#REF!"}}]
["wiek4",{"$f":"#REF!","v":{"$error":"#REF!"}}]
["stopienPokrewienstwa4",{"$f":"#REF!","v":{"$error":"#REF!"}}]
["miesiecznyDochodNetto4",{"$f":"#REF!","v":{"$error":"#REF!"}}]
["informacjaOStostunkachMajatkowych",3]
["pozyczkiOdFdpaLiczba",{"$f":"#REF!","v":{"$error":"#REF!"}}]
["pozyczkiOdFdpaAtrybut",{"$f":"IF(B58=0,\"pierwsza\",\"następna\")","v":{"$error":"#REF!"}}]
["siedzibaFirmyMiasto",{"$f":"#REF!","v":{"$error":"#REF!"}}]
["siedzibaFirmyKod",{"$f":"#REF!","v":{"$error":"#REF!"}}]
["nazwaFirmy",{"$f":"#REF!","v":{"$error":"#REF!"}}]
["siedzibaFirmyUlica",{"$f":"#REF!","v":{"$error":"#REF!"}}]
["dataRozpoczeciaDzialalnosci",{"$f":"#REF!","v":{"$error":"#REF!"}}]
["okresOstatniegoZawieszenia",{"$f":"#REF!","v":{"$error":"#REF!"}}]
["numerRegon",{"$f":"#REF!","v":{"$error":"#REF!"}}]
["glownyKodPKD",{"$f":"#REF!","v":{"$error":"#REF!"}}]
["rodzajDzialalnosci",{"$f":"#REF!","v":{"$error":"#REF!"}}]
["opisDzialanosci",{"$f":"#REF!","v":{"$error":"#REF!"}}]
["formaPrawna",3]
["formaRozliczenUS",4]
["liczbaZatrudnionychRok1",{"$f":"#REF!","v":{"$error":"#REF!"}}]
["liczbaZatrudnionychRok2",{"$f":"#REF!","v":{"$error":"#REF!"}}]
["liczbaZatrudnionychRok3",{"$f":"#REF!","v":{"$error":"#REF!"}}]
["liczbaZatrudnionych1",{"$f":"#REF!","v":{"$error":"#REF!"}}]
["liczbaZatrudnionych2",{"$f":"#REF!","v":{"$error":"#REF!"}}]
["liczbaZatrudnionych3",{"$f":"#REF!","v":{"$error":"#REF!"}}]
["liczbaZatrudnionychKobiety",{"$f":"#REF!","v":{"$error":"#REF!"}}]
["liczbaZatrudnionychMężczyźni",{"$f":"#REF!","v":{"$error":"#REF!"}}]
["liczbaZatrudnionychObszaryWiejskie",{"$f":"#REF!","v":{"$error":"#REF!"}}]
["obrotNettoRok1",{"$f":"#REF!","v":{"$error":"#REF!"}}]
["obrotNettoRok2",{"$f":"#REF!","v":{"$error":"#REF!"}}]
["obrotNettoRok3",{"$f":"#REF!","v":{"$error":"#REF!"}}]
["sumaAktywówRok1",{"$f":"#REF!","v":{"$error":"#REF!"}}]
["sumaAktywówRok2",{"$f":"#REF!","v":{"$error":"#REF!"}}]
["sumaAktywówRok3",{"$f":"#REF!","v":{"$error":"#REF!"}}]
["planowanaLiczbaZatrudnionych",{"$f":"#REF!","v":{"$error":"#REF!"}}]
["typPrzedsiebiorstwa",3]
["statusPrzedsiebiorstwa","średni"]
["planowanaLiczbaNowychMiejscPracy",{"$f":"#REF!","v":{"$error":"#REF!"}}]
["nrRachunkuBankowego",{"$f":"#REF!","v":{"$error":"#REF!"}}]
["nazwaRachunkuBankowego",{"$f":"#REF!","v":{"$error":"#REF!"}}]
["opisProwadzonejDzialanosci",{"$f":"#REF!","v":{"$error":"#REF!"}}]
["daneDotyczaceProduktow",{"$f":"#REF!","v":{"$error":"#REF!"}}]
["podstawaPlanowaniaSprzedazy",{"$f":"#REF!","v":{"$error":"#REF!"}}]
[]
[]
["Ocena rynku"]
["glowniOdbiorcyNazwa1",{"$f":"#REF!","v":{"$error":"#REF!"}}]
["glowniOdbiorcyUdzial1",{"$f":"#REF!","v":{"$error":"#REF!"}}]
["glowniOdbiorcyTerminZaplaty1",{"$f":"#REF!","v":{"$error":"#REF!"}}]
["glowniOdbiorcyNazwa2",{"$f":"#REF!","v":{"$error":"#REF!"}}]
["glowniOdbiorcyUdzial2",{"$f":"#REF!","v":{"$error":"#REF!"}}]
["glowniOdbiorcyTerminZaplaty2",{"$f":"#REF!","v":{"$error":"#REF!"}}]
["glowniOdbiorcyNazwa3",{"$f":"#REF!","v":{"$error":"#REF!"}}]
["glowniOdbiorcyUdzial3",{"$f":"#REF!","v":{"$error":"#REF!"}}]
["glowniOdbiorcyTerminZaplaty3",{"$f":"#REF!","v":{"$error":"#REF!"}}]
["glowniDostawcyTowarowNazwa1",{"$f":"#REF!","v":{"$error":"#REF!"}}]
["glowniDostawcyTowarowUdzial1",{"$f":"#REF!","v":{"$error":"#REF!"}}]
["glowniDostawcyTowarowTerminZaplaty1",{"$f":"#REF!","v":{"$error":"#REF!"}}]
["glowniDostawcyTowarowNazwa2",{"$f":"#REF!","v":{"$error":"#REF!"}}]
["glowniDostawcyTowarowUdzial2",{"$f":"#REF!","v":{"$error":"#REF!"}}]
["glowniDostawcyTowarowTerminZaplaty2",{"$f":"#REF!","v":{"$error":"#REF!"}}]
["glowniDostawcyTowarowNazwa3",{"$f":"#REF!","v":{"$error":"#REF!"}}]
["glowniDostawcyTowarowUdzial3",{"$f":"#REF!","v":{"$error":"#REF!"}}]
["glowniDostawcyTowarowTerminZaplaty3",{"$f":"#REF!","v":{"$error":"#REF!"}}]
["umowyDostawcyOdbiorcyNazwa1",{"$f":"#REF!","v":{"$error":"#REF!"}}]
["umowyDostawcyOdbiorcyWartosc1",{"$f":"#REF!","v":{"$error":"#REF!"}}]
["umowyDostawcyOdbiorcyOkresUmowy1",{"$f":"#REF!","v":{"$error":"#REF!"}}]
["umowyDostawcyOdbiorcyNazwa2",{"$f":"#REF!","v":{"$error":"#REF!"}}]
["umowyDostawcyOdbiorcyWartosc2",{"$f":"#REF!","v":{"$error":"#REF!"}}]
["umowyDostawcyOdbiorcyOkresUmowy2",{"$f":"#REF!","v":{"$error":"#REF!"}}]
["umowyDostawcyOdbiorcyNazwa3",{"$f":"#REF!","v":{"$error":"#REF!"}}]
["umowyDostawcyOdbiorcyWartosc3",{"$f":"#REF!","v":{"$error":"#REF!"}}]
["umowyDostawcyOdbiorcyOkresUmowy3",{"$f":"#REF!","v":{"$error":"#REF!"}}]
["zasiegRynkuPoczatkowo1",{"$f":"#REF!","v":{"$error":"#REF!"}}]
["zasiegRynkuDocelowo1",{"$f":"#REF!","v":{"$error":"#REF!"}}]
["zasiegRynkuPoczatkowo2",{"$f":"#REF!","v":{"$error":"#REF!"}}]
["zasiegRynkuDocelowo2",{"$f":"#REF!","v":{"$error":"#REF!"}}]
["zasiegRynkuPoczatkowo3",{"$f":"#REF!","v":{"$error":"#REF!"}}]
["zasiegRynkuDocelowo3",{"$f":"#REF!","v":{"$error":"#REF!"}}]
["sezonowoscPopytu",{"$f":"#REF!","v":{"$error":"#REF!"}}]
["konkurentNazwa1",{"$f":"#REF!","v":{"$error":"#REF!"}}]
["konkurentSilneStrony1",{"$f":"#REF!","v":{"$error":"#REF!"}}]
["konkurentSlabeStrony1",{"$f":"#REF!","v":{"$error":"#REF!"}}]
["konkurentNazwa2",{"$f":"#REF!","v":{"$error":"#REF!"}}]
["konkurentSilneStrony2",{"$f":"#REF!","v":{"$error":"#REF!"}}]
["konkurentSlabeStrony2",{"$f":"#REF!","v":{"$error":"#REF!"}}]
["konkurentNazwa3",{"$f":"#REF!","v":{"$error":"#REF!"}}]
["konkurentSilneStrony3",{"$f":"#REF!","v":{"$error":"#REF!"}}]
["konkurentSlabeStrony3",{"$f":"#REF!","v":{"$error":"#REF!"}}]
["mozliwoscZmianyProdukcji",{"$f":"#REF!","v":{"$error":"#REF!"}}]
[]
["Opis środków stałych",{"$f":"#REF!","v":{"$error":"#REF!"}}]
["gruntyNrKsiegi1",{"$f":"#REF!","v":{"$error":"#REF!"}}]
["gruntyLokalizacja1",{"$f":"#REF!","v":{"$error":"#REF!"}}]
["gruntyPowierzchnia1",{"$f":"#REF!","v":{"$error":"#REF!"}}]
["gruntyUstanowionaHipoteka1",{"$f":"#REF!","v":{"$error":"#REF!"}}]
["gruntyAktualnaWartosc1",{"$f":"#REF!","v":{"$error":"#REF!"}}]
["gruntyNrKsiegi2",{"$f":"#REF!","v":{"$error":"#REF!"}}]
["gruntyLokalizacja2",{"$f":"#REF!","v":{"$error":"#REF!"}}]
["gruntyPowierzchnia2",{"$f":"#REF!","v":{"$error":"#REF!"}}]
["gruntyUstanowionaHipoteka2",{"$f":"#REF!","v":{"$error":"#REF!"}}]
["gruntyAktualnaWartosc2",{"$f":"#REF!","v":{"$error":"#REF!"}}]
["gruntyNrKsiegi3",{"$f":"#REF!","v":{"$error":"#REF!"}}]
["gruntyLokalizacja3",{"$f":"#REF!","v":{"$error":"#REF!"}}]
["gruntyPowierzchnia3",{"$f":"#REF!","v":{"$error":"#REF!"}}]
["gruntyUstanowionaHipoteka3",{"$f":"#REF!","v":{"$error":"#REF!"}}]
["gruntyAktualnaWartosc3",{"$f":"#REF!","v":{"$error":"#REF!"}}]
["gruntyWartoscOgolem",{"$f":"#REF!","v":{"$error":"#REF!"}}]
["budynkiNrKsiegi1",{"$f":"#REF!","v":{"$error":"#REF!"}}]
["budynkiRokBudowy1",{"$f":"#REF!","v":{"$error":"#REF!"}}]
["budynkiWartoscPolisy1",{"$f":"#REF!","v":{"$error":"#REF!"}}]
["budynkiDataWaznosciPolisy1",{"$f":"#REF!","v":{"$error":"#REF!"}}]
["budynkiUstanowionaHipoteka1",{"$f":"#REF!","v":{"$error":"#REF!"}}]
["budynkiAktualnaWartosc1",{"$f":"#REF!","v":{"$error":"#REF!"}}]
["budynkiNrKsiegi2",{"$f":"#REF!","v":{"$error":"#REF!"}}]
["budynkiRokBudowy2",{"$f":"#REF!","v":{"$error":"#REF!"}}]
["budynkiWartoscPolisy2",{"$f":"#REF!","v":{"$error":"#REF!"}}]
["budynkiDataWaznosciPolisy2",{"$f":"#REF!","v":{"$error":"#REF!"}}]
["budynkiUstanowionaHipoteka2",{"$f":"#REF!","v":{"$error":"#REF!"}}]
["budynkiAktualnaWartosc2",{"$f":"#REF!","v":{"$error":"#REF!"}}]
["budynkiNrKsiegi3",{"$f":"#REF!","v":{"$error":"#REF!"}}]
["budynkiRokBudowy3",{"$f":"#REF!","v":{"$error":"#REF!"}}]
["budynkiWartoscPolisy3",{"$f":"#REF!","v":{"$error":"#REF!"}}]
["budynkiDataWaznosciPolisy3",{"$f":"#REF!","v":{"$error":"#REF!"}}]
["budynkiUstanowionaHipoteka3",{"$f":"#REF!","v":{"$error":"#REF!"}}]
["budynkiAktualnaWartosc3",{"$f":"#REF!","v":{"$error":"#REF!"}}]
["budynkiWartoscOgolem",{"$f":"#REF!","v":{"$error":"#REF!"}}]
["wyposazenieCechy1",{"$f":"#REF!","v":{"$error":"#REF!"}}]
["wyposazenieRokProdukcji1",{"$f":"#REF!","v":{"$error":"#REF!"}}]
["wyposazenieWartoscPolisy1",{"$f":"#REF!","v":{"$error":"#REF!"}}]
["wyposazenieDataWaznosciPolisy1",{"$f":"#REF!","v":{"$error":"#REF!"}}]
["wyposazenieUstanowione1",{"$f":"#REF!","v":{"$error":"#REF!"}}]
["wyposazenieAktualnaWartosc1",{"$f":"#REF!","v":{"$error":"#REF!"}}]
["wyposazenieCechy2",{"$f":"#REF!","v":{"$error":"#REF!"}}]
["wyposazenieRokProdukcji2",{"$f":"#REF!","v":{"$error":"#REF!"}}]
["wyposazenieWartoscPolisy2",{"$f":"#REF!","v":{"$error":"#REF!"}}]
["wyposazenieDataWaznosciPolisy2",{"$f":"#REF!","v":{"$error":"#REF!"}}]
["wyposazenieUstanowione2",{"$f":"#REF!","v":{"$error":"#REF!"}}]
["wyposazenieAktualnaWartosc2",{"$f":"#REF!","v":{"$error":"#REF!"}}]
["wyposazenieCechy3",{"$f":"#REF!","v":{"$error":"#REF!"}}]
["wyposazenieRokProdukcji3",{"$f":"#REF!","v":{"$error":"#REF!"}}]
["wyposazenieWartoscPolisy3",{"$f":"#REF!","v":{"$error":"#REF!"}}]
["wyposazenieDataWaznosciPolisy3",{"$f":"#REF!","v":{"$error":"#REF!"}}]
["wyposazenieUstanowione3",{"$f":"#REF!","v":{"$error":"#REF!"}}]
["wyposazenieAktualnaWartosc3",{"$f":"#REF!","v":{"$error":"#REF!"}}]
["wyposazenieCechy4",{"$f":"#REF!","v":{"$error":"#REF!"}}]
["wyposazenieRokProdukcji4",{"$f":"#REF!","v":{"$error":"#REF!"}}]
["wyposazenieWartoscPolisy4",{"$f":"#REF!","v":{"$error":"#REF!"}}]
["wyposazenieDataWaznosciPolisy4",{"$f":"#REF!","v":{"$error":"#REF!"}}]
["wyposazenieUstanowione4",{"$f":"#REF!","v":{"$error":"#REF!"}}]
["wyposazenieAktualnaWartosc4",{"$f":"#REF!","v":{"$error":"#REF!"}}]
["wyposazenieCechy5",{"$f":"#REF!","v":{"$error":"#REF!"}}]
["wyposazenieRokProdukcji5",{"$f":"#REF!","v":{"$error":"#REF!"}}]
["wyposazenieWartoscPolisy5",{"$f":"#REF!","v":{"$error":"#REF!"}}]
["wyposazenieDataWaznosciPolisy5",{"$f":"#REF!","v":{"$error":"#REF!"}}]
["wyposazenieUstanowione5",{"$f":"#REF!","v":{"$error":"#REF!"}}]
["wyposazenieAktualnaWartosc5",{"$f":"#REF!","v":{"$error":"#REF!"}}]
["wyposazenieWartoscOgolem",{"$f":"#REF!","v":{"$error":"#REF!"}}]
["srodkiTransportuMarka1",{"$f":"#REF!","v":{"$error":"#REF!"}}]
["srodkiTransportuRokProdukcji1",{"$f":"#REF!","v":{"$error":"#REF!"}}]
["srodkiTransportuWartoscPolisy1",{"$f":"#REF!","v":{"$error":"#REF!"}}]
["srodkiTransportuDataWaznosciPolisy1",{"$f":"#REF!","v":{"$error":"#REF!"}}]
["srodkiTransportuUstanowione1",{"$f":"#REF!","v":{"$error":"#REF!"}}]
["srodkiTransportuAktualnaWartosc1",{"$f":"#REF!","v":{"$error":"#REF!"}}]
["srodkiTransportuMarka2",{"$f":"#REF!","v":{"$error":"#REF!"}}]
["srodkiTransportuRokProdukcji2",{"$f":"#REF!","v":{"$error":"#REF!"}}]
["srodkiTransportuWartoscPolisy2",{"$f":"#REF!","v":{"$error":"#REF!"}}]
["srodkiTransportuDataWaznosciPolisy2",{"$f":"#REF!","v":{"$error":"#REF!"}}]
["srodkiTransportuUstanowione2",{"$f":"#REF!","v":{"$error":"#REF!"}}]
["srodkiTransportuAktualnaWartosc2",{"$f":"#REF!","v":{"$error":"#REF!"}}]
["srodkiTransportuMarka3",{"$f":"#REF!","v":{"$error":"#REF!"}}]
["srodkiTransportuRokProdukcji3",{"$f":"#REF!","v":{"$error":"#REF!"}}]
["srodkiTransportuWartoscPolisy3",{"$f":"#REF!","v":{"$error":"#REF!"}}]
["srodkiTransportuDataWaznosciPolisy3",{"$f":"#REF!","v":{"$error":"#REF!"}}]
["srodkiTransportuUstanowione3",{"$f":"#REF!","v":{"$error":"#REF!"}}]
["srodkiTransportuAktualnaWartosc3",{"$f":"#REF!","v":{"$error":"#REF!"}}]
["srodkiTransportuWartoscOgolem",{"$f":"#REF!","v":{"$error":"#REF!"}}]
["inneAktywa1",{"$f":"#REF!","v":{"$error":"#REF!"}}]
["inneAktywaRokProdukcji1",{"$f":"#REF!","v":{"$error":"#REF!"}}]
["inneAktywaWartoscPolisy1",{"$f":"#REF!","v":{"$error":"#REF!"}}]
["inneAktywaDataWaznosciPolisy1",{"$f":"#REF!","v":{"$error":"#REF!"}}]
["inneAktywaUstanowione1",{"$f":"#REF!","v":{"$error":"#REF!"}}]
["inneAktywaAktualnaWartosc1",{"$f":"#REF!","v":{"$error":"#REF!"}}]
["inneAktywa2",{"$f":"#REF!","v":{"$error":"#REF!"}}]
["inneAktywaRokProdukcji2",{"$f":"#REF!","v":{"$error":"#REF!"}}]
["inneAktywaWartoscPolisy2",{"$f":"#REF!","v":{"$error":"#REF!"}}]
["inneAktywaDataWaznosciPolisy2",{"$f":"#REF!","v":{"$error":"#REF!"}}]
["inneAktywaUstanowione2",{"$f":"#REF!","v":{"$error":"#REF!"}}]
["inneAktywaAktualnaWartosc2",{"$f":"#REF!","v":{"$error":"#REF!"}}]
["inneAktywa3",{"$f":"#REF!","v":{"$error":"#REF!"}}]
["inneAktywaRokProdukcji3",{"$f":"#REF!","v":{"$error":"#REF!"}}]
["inneAktywaWartoscPolisy3",{"$f":"#REF!","v":{"$error":"#REF!"}}]
["inneAktywaDataWaznosciPolisy3",{"$f":"#REF!","v":{"$error":"#REF!"}}]
["inneAktywaUstanowione3",{"$f":"#REF!","v":{"$error":"#REF!"}}]
["inneAktywaAktualnaWartosc3",{"$f":"#REF!","v":{"$error":"#REF!"}}]
["inneAktywaWartoscOgolem",{"$f":"#REF!","v":{"$error":"#REF!"}}]
[]
[]
["Opis środków obrotowych"]
["zapasyProdukcyjneSurowceInne",{"$f":"#REF!","v":{"$error":"#REF!"}}]
["zapasyProdukcyjneSurowceWartosc",{"$f":"#REF!","v":{"$error":"#REF!"}}]
["zapasyProdukcyjneProdukcjaWTokuInne",{"$f":"#REF!","v":{"$error":"#REF!"}}]
["zapasyProdukcyjneProdukcjaWTokuWartosc",{"$f":"#REF!","v":{"$error":"#REF!"}}]
["zapasyProdukcyjneWyrobyGotoweInne",{"$f":"#REF!","v":{"$error":"#REF!"}}]
["zapasyProdukcyjneWyrobyGotoweWartosc",{"$f":"#REF!","v":{"$error":"#REF!"}}]
["zapasyProdukcyjneWartoscOgolem",{"$f":"#REF!","v":{"$error":"#REF!"}}]
["naleznosciNazwaDluznika1",{"$f":"#REF!","v":{"$error":"#REF!"}}]
["naleznosciAdres1",{"$f":"#REF!","v":{"$error":"#REF!"}}]
["naleznosciRodzaj1",{"$f":"#REF!","v":{"$error":"#REF!"}}]
["naleznoscTerminZaplaty1",{"$f":"#REF!","v":{"$error":"#REF!"}}]
["naleznoscKwota1",{"$f":"#REF!","v":{"$error":"#REF!"}}]
["naleznosciNazwaDluznika2",{"$f":"#REF!","v":{"$error":"#REF!"}}]
["naleznosciAdres2",{"$f":"#REF!","v":{"$error":"#REF!"}}]
["naleznosciRodzaj2",{"$f":"#REF!","v":{"$error":"#REF!"}}]
["naleznoscTerminZaplaty2",{"$f":"#REF!","v":{"$error":"#REF!"}}]
["naleznoscKwota2",{"$f":"#REF!","v":{"$error":"#REF!"}}]
["naleznosciNazwaDluznika3",{"$f":"#REF!","v":{"$error":"#REF!"}}]
["naleznosciAdres3",{"$f":"#REF!","v":{"$error":"#REF!"}}]
["naleznosciRodzaj3",{"$f":"#REF!","v":{"$error":"#REF!"}}]
["naleznoscTerminZaplaty3",{"$f":"#REF!","v":{"$error":"#REF!"}}]
["naleznoscKwota3",{"$f":"#REF!","v":{"$error":"#REF!"}}]
["naleznosciNazwaDluznika4",{"$f":"#REF!","v":{"$error":"#REF!"}}]
["naleznosciAdres4",{"$f":"#REF!","v":{"$error":"#REF!"}}]
["naleznosciRodzaj4",{"$f":"#REF!","v":{"$error":"#REF!"}}]
["naleznoscTerminZaplaty4",{"$f":"#REF!","v":{"$error":"#REF!"}}]
["naleznoscKwota4",{"$f":"#REF!","v":{"$error":"#REF!"}}]
["naleznosciNazwaDluznika5",{"$f":"#REF!","v":{"$error":"#REF!"}}]
["naleznosciAdres5",{"$f":"#REF!","v":{"$error":"#REF!"}}]
["naleznosciRodzaj5",{"$f":"#REF!","v":{"$error":"#REF!"}}]
["naleznoscTerminZaplaty5",{"$f":"#REF!","v":{"$error":"#REF!"}}]
["naleznoscKwota5",{"$f":"#REF!","v":{"$error":"#REF!"}}]
["naleznosciWartoscOgolem",{"$f":"#REF!","v":{"$error":"#REF!"}}]
["gotowkaNazwaBanku1",{"$f":"#REF!","v":{"$error":"#REF!"}}]
["gotowkaWaluta1",{"$f":"#REF!","v":{"$error":"#REF!"}}]
["gotowkaKurs1",{"$f":"#REF!","v":{"$error":"#REF!"}}]
["gotowkaOkresDepozytu1",{"$f":"#REF!","v":{"$error":"#REF!"}}]
["gotowkaOprocentowanie1",{"$f":"#REF!","v":{"$error":"#REF!"}}]
["gotowkaAktualnaWartosc1",{"$f":"#REF!","v":{"$error":"#REF!"}}]
["gotowkaNazwaBanku2",{"$f":"#REF!","v":{"$error":"#REF!"}}]
["gotowkaWaluta2",{"$f":"#REF!","v":{"$error":"#REF!"}}]
["gotowkaKurs2",{"$f":"#REF!","v":{"$error":"#REF!"}}]
["gotowkaOkresDepozytu2",{"$f":"#REF!","v":{"$error":"#REF!"}}]
["gotowkaOprocentowanie2",{"$f":"#REF!","v":{"$error":"#REF!"}}]
["gotowkaAktualnaWartosc2",{"$f":"#REF!","v":{"$error":"#REF!"}}]
["gotowkaNazwaBanku3",{"$f":"#REF!","v":{"$error":"#REF!"}}]
["gotowkaWaluta3",{"$f":"#REF!","v":{"$error":"#REF!"}}]
["gotowkaKurs3",{"$f":"#REF!","v":{"$error":"#REF!"}}]
["gotowkaOkresDepozytu3",{"$f":"#REF!","v":{"$error":"#REF!"}}]
["gotowkaOprocentowanie3",{"$f":"#REF!","v":{"$error":"#REF!"}}]
["gotowkaAktualnaWartosc3",{"$f":"#REF!","v":{"$error":"#REF!"}}]
["gotowkaWartoscOgolem",{"$f":"#REF!","v":{"$error":"#REF!"}}]
["inneBiezaceAktywaNazwa1",{"$f":"#REF!","v":{"$error":"#REF!"}}]
["inneBiezaceAktywaWartosc1",{"$f":"#REF!","v":{"$error":"#REF!"}}]
["inneBiezaceAktywaNazwa2",{"$f":"#REF!","v":{"$error":"#REF!"}}]
["inneBiezaceAktywaWartosc2",{"$f":"#REF!","v":{"$error":"#REF!"}}]
["inneBiezaceAktywaNazwa3",{"$f":"#REF!","v":{"$error":"#REF!"}}]
["inneBiezaceAktywaWartosc3",{"$f":"#REF!","v":{"$error":"#REF!"}}]
["inneBiezaceAktywaWartoscOgolem",{"$f":"#REF!","v":{"$error":"#REF!"}}]
[]
["Opis zobowiązań"]
["pozyczkiKredytodawca1",{"$f":"#REF!","v":{"$error":"#REF!"}}]
["pozyczkiRata1",{"$f":"#REF!","v":{"$error":"#REF!"}}]
["pozyczkiZadluzenieOd1",{"$f":"#REF!","v":{"$error":"#REF!"}}]
["pozyczkiTerminZaplaty1",{"$f":"#REF!","v":{"$error":"#REF!"}}]
["pozyczkiAktualneZadluzenie1",{"$f":"#REF!","v":{"$error":"#REF!"}}]
["pozyczkiKredytodawca2",{"$f":"#REF!","v":{"$error":"#REF!"}}]
["pozyczkiRata2",{"$f":"#REF!","v":{"$error":"#REF!"}}]
["pozyczkiZadluzenieOd2",{"$f":"#REF!","v":{"$error":"#REF!"}}]
["pozyczkiTerminZaplaty2",{"$f":"#REF!","v":{"$error":"#REF!"}}]
["pozyczkiAktualneZadluzenie2",{"$f":"#REF!","v":{"$error":"#REF!"}}]
["pozyczkiKredytodawca3",{"$f":"#REF!","v":{"$error":"#REF!"}}]
["pozyczkiRata3",{"$f":"#REF!","v":{"$error":"#REF!"}}]
["pozyczkiZadluzenieOd3",{"$f":"#REF!","v":{"$error":"#REF!"}}]
["pozyczkiTerminZaplaty3",{"$f":"#REF!","v":{"$error":"#REF!"}}]
["pozyczkiAktualneZadluzenie3",{"$f":"#REF!","v":{"$error":"#REF!"}}]
["pozyczkiWartoscOgolem",{"$f":"#REF!","v":{"$error":"#REF!"}}]
["leasingWierzyciel1",{"$f":"#REF!","v":{"$error":"#REF!"}}]
["leasingRataMiesieczna1",{"$f":"#REF!","v":{"$error":"#REF!"}}]
["leasingZobowiazanieOd1",{"$f":"#REF!","v":{"$error":"#REF!"}}]
["leasingTerminZaplaty1",{"$f":"#REF!","v":{"$error":"#REF!"}}]
["leasingAktualneZadluzenie1",{"$f":"#REF!","v":{"$error":"#REF!"}}]
["leasingWierzyciel2",{"$f":"#REF!","v":{"$error":"#REF!"}}]
["leasingRataMiesieczna2",{"$f":"#REF!","v":{"$error":"#REF!"}}]
["leasingZobowiazanieOd2",{"$f":"#REF!","v":{"$error":"#REF!"}}]
["leasingTerminZaplaty2",{"$f":"#REF!","v":{"$error":"#REF!"}}]
["leasingAktualneZadluzenie2",{"$f":"#REF!","v":{"$error":"#REF!"}}]
["leasingWierzyciel3",{"$f":"#REF!","v":{"$error":"#REF!"}}]
["leasingRataMiesieczna3",{"$f":"#REF!","v":{"$error":"#REF!"}}]
["leasingZobowiazanieOd3",{"$f":"#REF!","v":{"$error":"#REF!"}}]
["leasingTerminZaplaty3",{"$f":"#REF!","v":{"$error":"#REF!"}}]
["leasingAktualneZadluzenie3",{"$f":"#REF!","v":{"$error":"#REF!"}}]
["leasingWartoscOgolem",{"$f":"#REF!","v":{"$error":"#REF!"}}]
["pozyczkiKrotkoterminoweKredytodawca1",{"$f":"#REF!","v":{"$error":"#REF!"}}]
["pozyczkiKrotkoterminoweRata1",{"$f":"#REF!","v":{"$error":"#REF!"}}]
["pozyczkiKrotkoterminoweZadluzenieOd1",{"$f":"#REF!","v":{"$error":"#REF!"}}]
["pozyczkiKrotkoterminoweTerminZaplaty1",{"$f":"#REF!","v":{"$error":"#REF!"}}]
["pozyczkiKrotkoterminoweAktualneZadluzenie1",{"$f":"#REF!","v":{"$error":"#REF!"}}]
["pozyczkiKrotkoterminoweKredytodawca2",{"$f":"#REF!","v":{"$error":"#REF!"}}]
["pozyczkiKrotkoterminoweRata2",{"$f":"#REF!","v":{"$error":"#REF!"}}]
["pozyczkiKrotkoterminoweZadluzenieOd2",{"$f":"#REF!","v":{"$error":"#REF!"}}]
["pozyczkiKrotkoterminoweTerminZaplaty2",{"$f":"#REF!","v":{"$error":"#REF!"}}]
["pozyczkiKrotkoterminoweAktualneZadluzenie2",{"$f":"#REF!","v":{"$error":"#REF!"}}]
["pozyczkiKrotkoterminoweKredytodawca3",{"$f":"#REF!","v":{"$error":"#REF!"}}]
["pozyczkiKrotkoterminoweRata3",{"$f":"#REF!","v":{"$error":"#REF!"}}]
["pozyczkiKrotkoterminoweZadluzenieOd3",{"$f":"#REF!","v":{"$error":"#REF!"}}]
["pozyczkiKrotkoterminoweTerminZaplaty3",{"$f":"#REF!","v":{"$error":"#REF!"}}]
["pozyczkiKrotkoterminoweAktualneZadluzenie3",{"$f":"#REF!","v":{"$error":"#REF!"}}]
["pozyczkiKrotkoterminoweWartoscOgolem",{"$f":"#REF!","v":{"$error":"#REF!"}}]
["zobowiazanieDoDostawcyNazwa1",{"$f":"#REF!","v":{"$error":"#REF!"}}]
["zobowiazanieDoDostawcyAdres1",{"$f":"#REF!","v":{"$error":"#REF!"}}]
["zobowiazanieDoDostawcyOdDnia1",{"$f":"#REF!","v":{"$error":"#REF!"}}]
["zobowiazanieDoDostawcyTerminZapalty1",{"$f":"#REF!","v":{"$error":"#REF!"}}]
["zobowiazanieDoDostawcyKwota1",{"$f":"#REF!","v":{"$error":"#REF!"}}]
["zobowiazanieDoDostawcyNazwa2",{"$f":"#REF!","v":{"$error":"#REF!"}}]
["zobowiazanieDoDostawcyAdres2",{"$f":"#REF!","v":{"$error":"#REF!"}}]
["zobowiazanieDoDostawcyOdDnia2",{"$f":"#REF!","v":{"$error":"#REF!"}}]
["zobowiazanieDoDostawcyTerminZapalty2",{"$f":"#REF!","v":{"$error":"#REF!"}}]
["zobowiazanieDoDostawcyKwota2",{"$f":"#REF!","v":{"$error":"#REF!"}}]
["zobowiazanieDoDostawcyNazwa3",{"$f":"#REF!","v":{"$error":"#REF!"}}]
["zobowiazanieDoDostawcyAdres3",{"$f":"#REF!","v":{"$error":"#REF!"}}]
["zobowiazanieDoDostawcyOdDnia3",{"$f":"#REF!","v":{"$error":"#REF!"}}]
["zobowiazanieDoDostawcyTerminZapalty3",{"$f":"#REF!","v":{"$error":"#REF!"}}]
["zobowiazanieDoDostawcyKwota3",{"$f":"#REF!","v":{"$error":"#REF!"}}]
["zobowiazanieDoDostawcyNazwa4",{"$f":"#REF!","v":{"$error":"#REF!"}}]
["zobowiazanieDoDostawcyAdres4",{"$f":"#REF!","v":{"$error":"#REF!"}}]
["zobowiazanieDoDostawcyOdDnia4",{"$f":"#REF!","v":{"$error":"#REF!"}}]
["zobowiazanieDoDostawcyTerminZapalty4",{"$f":"#REF!","v":{"$error":"#REF!"}}]
["zobowiazanieDoDostawcyKwota4",{"$f":"#REF!","v":{"$error":"#REF!"}}]
["zobowiazanieDoDostawcyWartoscOgolem",{"$f":"#REF!","v":{"$error":"#REF!"}}]
["zobowiazanieDoBudzetuNazwa1",{"$f":"#REF!","v":{"$error":"#REF!"}}]
["zobowiazanieDoBudzetuAdres1",{"$f":"#REF!","v":{"$error":"#REF!"}}]
["zobowiazanieDoBudzetuOdDnia1",{"$f":"#REF!","v":{"$error":"#REF!"}}]
["zobowiazanieDoBudzetuTerminZaplaty1",{"$f":"#REF!","v":{"$error":"#REF!"}}]
["zobowiazanieDoBudzetuKwota1",{"$f":"#REF!","v":{"$error":"#REF!"}}]
["zobowiazanieDoBudzetuNazwa2",{"$f":"#REF!","v":{"$error":"#REF!"}}]
["zobowiazanieDoBudzetuAdres2",{"$f":"#REF!","v":{"$error":"#REF!"}}]
["zobowiazanieDoBudzetuOdDnia2",{"$f":"#REF!","v":{"$error":"#REF!"}}]
["zobowiazanieDoBudzetuTerminZaplaty2",{"$f":"#REF!","v":{"$error":"#REF!"}}]
["zobowiazanieDoBudzetuKwota2",{"$f":"#REF!","v":{"$error":"#REF!"}}]
["zobowiazanieDoBudzetuNazwa3",{"$f":"#REF!","v":{"$error":"#REF!"}}]
["zobowiazanieDoBudzetuAdres3",{"$f":"#REF!","v":{"$error":"#REF!"}}]
["zobowiazanieDoBudzetuOdDnia3",{"$f":"#REF!","v":{"$error":"#REF!"}}]
["zobowiazanieDoBudzetuTerminZaplaty3",{"$f":"#REF!","v":{"$error":"#REF!"}}]
["zobowiazanieDoBudzetuKwota3",{"$f":"#REF!","v":{"$error":"#REF!"}}]
["zobowiazanieDoBudzetuWartoscOgolem",{"$f":"#REF!","v":{"$error":"#REF!"}}]
["zobowiazaniaKrotkoterminoweNazwa1",{"$f":"#REF!","v":{"$error":"#REF!"}}]
["zobowiazaniaKrotkoterminoweAdres1",{"$f":"#REF!","v":{"$error":"#REF!"}}]
["zobowiazaniaKrotkoterminoweOdDnia",{"$f":"#REF!","v":{"$error":"#REF!"}}]
["zobowiazaniaKrotkoterminoweTerminZaplaty1",{"$f":"#REF!","v":{"$error":"#REF!"}}]
["zobowiazaniaKrotkoterminoweKwota1",{"$f":"#REF!","v":{"$error":"#REF!"}}]
["zobowiazaniaKrotkoterminoweNazwa2",{"$f":"#REF!","v":{"$error":"#REF!"}}]
["zobowiazaniaKrotkoterminoweAdres2",{"$f":"#REF!","v":{"$error":"#REF!"}}]
["zobowiazaniaKrotkoterminoweOdDnia",{"$f":"#REF!","v":{"$error":"#REF!"}}]
["zobowiazaniaKrotkoterminoweTerminZaplaty2",{"$f":"#REF!","v":{"$error":"#REF!"}}]
["zobowiazaniaKrotkoterminoweKwota2",{"$f":"#REF!","v":{"$error":"#REF!"}}]
["zobowiazaniaKrotkoterminoweWartoscOgolem",{"$f":"#REF!","v":{"$error":"#REF!"}}]
[]
["Proponowane zabezpieczenia pozyczki"]
["poreczenieNazwisko1",{"$f":"#REF!","v":{"$error":"#REF!"}}]
["poreczenieAdres1",{"$f":"#REF!","v":{"$error":"#REF!"}}]
["poreczenieDochod1",{"$f":"#REF!","v":{"$error":"#REF!"}}]
["poreczenieNazwisko2",{"$f":"#REF!","v":{"$error":"#REF!"}}]
["poreczenieAdres2",{"$f":"#REF!","v":{"$error":"#REF!"}}]
["poreczenieDochod2",{"$f":"#REF!","v":{"$error":"#REF!"}}]
["poreczenieNazwisko3",{"$f":"#REF!","v":{"$error":"#REF!"}}]
["poreczenieAdres3",{"$f":"#REF!","v":{"$error":"#REF!"}}]
["poreczenieDochod3",{"$f":"#REF!","v":{"$error":"#REF!"}}]
["poreczenieWeksel",{"$f":"#REF!","v":{"$error":"#REF!"}}]
["poreczenieInneZabezpieczenia",{"$f":"#REF!","v":{"$error":"#REF!"}}]
[]
[]
["Poprawki styczeń 2014"]
["adresKorespondencyjnyUlica",{"$f":"#REF!","v":{"$error":"#REF!"}}]
["adresKorespondencyjnyNrDomu",{"$f":"#REF!","v":{"$error":"#REF!"}}]
["numerNIPfirmy",{"$f":"#REF!","v":{"$error":"#REF!"}}]
["miejsceInwestycjiGmina",{"$f":"#REF!","v":{"$error":"#REF!"}}]
["Poprawki marzec 2014"]
["calkowityKosztPrzedsiewziecia",{"$f":"#REF!","v":{"$error":"#REF!"}}]
["wkladWlasny",{"$f":"#REF!","v":{"$error":"#REF!"}}]
["formaWkladuWlasnego","inna"]
["krotkiOpisFormyWkladuWlasnego",{"$f":"#REF!","v":{"$error":"#REF!"}}]
["nrKontaPozyczkobiorcyDoZwortuNadplaty",{"$f":"#REF!","v":{"$error":"#REF!"}}]
["Poprawki wrzesień 2014"]
["nrRachunkuBankowego",{"$f":"#REF!","v":{"$error":"#REF!"}}]
["nazwaBanku",{"$f":"#REF!","v":{"$error":"#REF!"}}]
["nrRachunkuBankowegoProwadzonegoPodNazwa",{"$f":"#REF!","v":{"$error":"#REF!"}}]
[]
[]
["dowód osobisty pożyczkobiorcy 1 - ważny do",{"$f":"#REF!","v":{"$error":"#REF!"}}]
["dowód osobisty pożyczkobiorcy 2 - ważny do","nie dotyczy (jest w sop, nie ma w tym szablonie)"]

{"sheet":"ArkSłownie","index":4,"n_rows":41,"n_cols":26,"rows_kept":41,"cut":false,"hidden":true,"merged":[]}
[null,null,{"$f":"MOD(1,10)","v":1},null,null,null,null,null,null,{"$f":"IF(QUOTIENT(F27,10^1)<1,LOOKUP(G31,Q2:Q2:R41), IF(MOD(F27,10)>0, LOOKUP(G31,Q2:Q2:R41),\" \" ))","v":{"$error":"#REF!"}},null,null,null,null,null,null,"liczebniki","słownie"]
[null,null,null,null,null,null,null,null,null,null,null,null,null,null,null,null,0,""]
[null,null,null,null,null,null,null,null,null,null,null,null,null,null,null,null,1,"jeden"]
[null,null,null,null,null,null,null,null,null,null,null,null,null,null,null,null,2,"dwa"]
[null,null,null,null,null,null,null,null,null,null,null,null,null,null,null,null,3,"trzy",11,"jedenaście",null,20,"dwadzieścia",null,100,"sto"]
[null,null,null,null,null,null,null,null,null,null,null,null,null,null,null,null,4,"cztery",12,"dwanaście",null,30,"trzydzieści",null,200,"dwieśćie"]
[null,"Miliony","Tysiace","setki",null,null,null,null,null,null,null,null,null,null,null,null,5,"pięć",13,"trzynaście",null,40,"czterdzieści",null,300,"trzysta"]
[null,null,null,null,null,null,null,null,null,null,null,null,null,null,null,null,6,"sześć",14,"czternaście",null,50,"pięćdziesiąt",null,400,"czterysta"]
[null,null,null,null,null,null,null,null,null,null,null,null,null,null,null,null,7,"siedem",15,"piętnaście",null,60,"sześćdziesiąt",null,500,"pięćset"]
[{"$f":"#REF!","v":{"$error":"#REF!"}},{"$f":"QUOTIENT(A10,10^6)","v":{"$error":"#REF!"}},{"$f":"(MOD(A10,10^6)-MOD(A10,10^3))/10^3","v":{"$error":"#REF!"}},{"$f":"MOD(A10,10^3)","v":{"$error":"#REF!"}},null,null,null,null,null,null,null,null,null,null,null,null,8,"osiem",16,"szesnaście",null,70,"siedemdziesiąt",null,600,"sześćset"]
[null,null,null,null,null,"10^2","10^1",1,null,null,{"$f":"D27","v":{"$error":"#REF!"}},{"$f":"QUOTIENT(K11,10^2)","v":{"$error":"#REF!"}},{"$f":"MOD(K11,10^2)","v":{"$error":"#REF!"}},null,null,null,9,"dziewięć",17,"siedemnaście",null,80,"osiemdziesiąt",null,700,"siedemset"]
[null,null,null,null,null,null,null,null,null,null,null,null,{"$f":"QUOTIENT(M11,10^1)","v":{"$error":"#REF!"}},{"$f":"M11-M12*10^1","v":{"$error":"#REF!"}},null,null,10,"dziesięć",18,"osiemaście",null,90,"dziewięćdziesiąt",null,800,"osiemset"]
[null,{"$f":"B10","v":{"$error":"#REF!"}},{"$f":"QUOTIENT(B13,10^2)","v":{"$error":"#REF!"}},{"$f":"MOD(B13,10^2)","v":{"$error":"#REF!"}},null,null,null,null,null,null,null,"10^2",null,null,null,null,11,"jedenaście",19,"dziewiętnaście",null,null,null,null,900,"dziewięćset"]
[null,null,"setki",{"$f":"QUOTIENT(D13,10^1)","v":{"$error":"#REF!"}},{"$f":"D13-D14*10^1","v":{"$error":"#REF!"}},null,null,null,null,null,null,"setki","dziesiatki","jednosci",null,null,12,"dwanaście"]
[null,null,null,null,null,null,null,null,null,null,null,{"$f":"L11*10^2","v":{"$error":"#REF!"}},{"$f":"M12*10^1","v":{"$error":"#REF!"}},{"$f":"N12*10^0","v":{"$error":"#REF!"}},null,null,13,"trzynaście"]
[null,null,null,null,null,null,null,null,null,null,null,{"$f":"LOOKUP(L15,Q2:Q2:R41)","v":{"$error":"#REF!"}},{"$f":"IF(M12=0,\"\", LOOKUP(M11,Q2:Q2:R41))","v":{"$error":"#REF!"}},{"$f":"IF(F27>20,LOOKUP(N12, Q2:Q2:R41),\"n\")","v":{"$error":"#REF!"}},null,null,14,"czternaście"]
[null,null,{"$f":"C13*10^2","v":{"$error":"#REF!"}},{"$f":"D14*10^1","v":{"$error":"#REF!"}},{"$f":"E14*10^0","v":{"$error":"#REF!"}},null,null,null,null,null,null,null,null,null,null,null,15,"piętnaście"]
[null,null,{"$f":"LOOKUP(C17,Q2:Q2:R41)","v":{"$error":"#REF!"}},{"$f":"IF(D17=0,\"\", LOOKUP(D17,Q2:Q2:R41))","v":{"$error":"#REF!"}},{"$f":"LOOKUP(E17, Q2:Q2:R41)","v":{"$error":"#REF!"}},{"$f":"IF(B13=0, \" \", (IF(D13<2,\"milion\", IF( D13<5,\"miliony\",\"milionów\" ) )) )","v":{"$error":"#REF!"}},null,null,null,"Słownie: ",null,null,null,null,null,null,16,"szesnaście"]
[null,null,null,null,null,null,null,null,null,null,null,null,null,null,null,null,17,"siedemnaście"]
[null,null,{"$f":"C10","v":{"$error":"#REF!"}},{"$f":"QUOTIENT(C20,10^2)","v":{"$error":"#REF!"}},{"$f":"MOD(C20,10^2)","v":{"$error":"#REF!"}},null,null,null,null,null,null,null,null,null,null,null,18,"osiemaście"]
[null,null,null,null,{"$f":"QUOTIENT(E20,10^1)","v":{"$error":"#REF!"}},{"$f":"E20-E21*10^1","v":{"$error":"#REF!"}},null,null,null,null,null,null,null,null,null,null,19,"dziewiętnaście"]
[null,null,null,null,null,null,null,null,null,null,null,null,null,null,null,null,20,"dwadzieścia"]
[null,null,null,null,null,null,null,null,null,null,null,null,null,null,null,null,30,"trzydzieści"]
[null,null,null,{"$f":"D20*10^2","v":{"$error":"#REF!"}},{"$f":"E21*10^1","v":{"$error":"#REF!"}},{"$f":"F21*10^0","v":{"$error":"#REF!"}},null,null,null,null,null,null,null,null,null,null,40,"czterdzieści"]
[null,null,null,{"$f":"LOOKUP(D24,Q2:Q2:R41)","v":{"$error":"#REF!"}},{"$f":"IF(E24=0,\"\", LOOKUP(E20,Q2:Q2:R41))","v":{"$error":"#REF!"}},{"$f":"IF(E20>20,LOOKUP(F21, Q2:Q2:R41), IF(E20<10, LOOKUP(F21, Q2:Q2:R41),  \" \"))","v":{"$error":"#REF!"}},{"$f":"IF(E20=0,IF(D20>0,\"tysięcy\",\" \"),IF(E20=1,\"tysiąc\",IF(E20<5,\"tysiące\",\"tysięcy\")))","v":{"$error":"#REF!"}},null,null,null,null,null,null,null,null,null,50,"pięćdziesiąt"]
[null,null,null,null,null,null,null,null,null,null,null,null,null,null,null,null,60,"sześćdziesiąt"]
[null,null,null,{"$f":"D10","v":{"$error":"#REF!"}},{"$f":"QUOTIENT(D27,10^2)","v":{"$error":"#REF!"}},{"$f":"MOD(D27,10^2)","v":{"$error":"#REF!"}},null,null,null,null,null,null,null,null,null,null,70,"siedemdziesiąt"]
[null,null,null,null,"setki",{"$f":"QUOTIENT(F27,10^1)","v":{"$error":"#REF!"}},{"$f":"F27-F28*10^1","v":{"$error":"#REF!"}},null,null,null,null,null,null,null,null,null,80,"osiemdziesiąt"]
[null,null,null,null,null,null,null,null,null,null,null,null,null,null,null,null,90,"dziewięćdziesiąt"]
[null,null,null,null,null,null,null,null,null,null,null,null,null,null,null,null,100,"sto"]
[null,null,null,null,{"$f":"E27*10^2","v":{"$error":"#REF!"}},{"$f":"F28*10^1","v":{"$error":"#REF!"}},{"$f":"G28*10^0","v":{"$error":"#REF!"}},null,null,null,null,null,null,null,null,null,200,"dwieśćie"]
[null,null,null,null,{"$f":"LOOKUP(E31,Q2:Q2:R41)","v":{"$error":"#REF!"}},{"$f":"IF(F28=0,\"\", LOOKUP(M11,Q2:Q2:R41))","v":{"$error":"#REF!"}},{"$f":"IF(F27>20,LOOKUP(G28, Q2:Q2:R41), IF(F27<10, LOOKUP(G28, Q2:Q2:R41),  \" \"))","v":{"$error":"#REF!"}},null,null,null,null,null,null,null,null,null,300,"trzysta"]
[null,null,null,null,null,null,null,null,null,null,null,null,null,null,null,null,400,"czterysta"]
[null,null,null,null,null,null,null,null,null,"Słownie złotych: ",{"$f":"IF(B10>0,C18&\" \"&D18&\" \"&E18&\" \"&F18& \" \", \" \")","v":{"$error":"#REF!"}},null,null,null,null,null,500,"pięćset"]
[null,null,null,null,null,null,null,null,null,null,{"$f":"IF( C10>0,(D25&\" \"&E25&\" \"&F25&\" \"&G25), \" \")","v":{"$error":"#REF!"}},null,null,null,null,null,600,"sześćset"]
[null,null,null,null,null,null,null,null,null,null,{"$f":"IF(A10>999999999, \"Przekroczony zakres!\",\"Słownie zł: \"&K34&\" \"&K35&\" \" &E32&\" \"&F32&\" \"&H32&\" \"&G32)","v":{"$error":"#REF!"}},"zł",null,null,null,null,700,"siedemset"]
[null,null,null,null,null,null,null,null,null,null,null,null,null,null,null,null,800,"osiemset"]
[null,null,null,null,null,null,null,null,null,null,null,null,null,null,null,null,900,"dziewięćset"]
[null,null,null,null,null,null,null,null,null,null,null,null,null,null,null,null,1000,"tysiąc"]
[null,null,null,null,null,null,null,null,null,null,null,null,null,null,null,null,2000,"dwa tysiące"]
[null,null,null,null,null,null,null,null,null,null,null,null,null,null,null,null,3000,"tysiące"]

{"sheet":"Obrazki","index":5,"n_rows":0,"n_cols":0,"rows_kept":0,"cut":false,"hidden":true,"merged":[[6,1,6,7],[5,1,5,7],[0,1,0,7],[1,1,1,7],[2,1,2,7],[3,1,3,7],[4,1,4,7]]}